fUSD/lending_fUSD_20250108
["ID","MTS","AMOUNT","RATE_DAILY","PERIOD"]
[348113261,1736326245409,-500.0,0.0001027,2]
[348113262,1736326245418,-500.0,0.0001027,2]
[348113263,1736326245428,-500.0,0.0001027,2]
[348113264,1736326245438,-500.0,0.0001027,2]
[348113265,1736326245447,-500.0,0.0001027,2]
[348113266,1736326245456,-500.0,0.0001027,2]
[348113267,1736326245465,-500.0,0.0001027,2]
[348113268,1736326245475,-321.16958776,0.0001027,2]
[348113270,1736326245485,-500.0,0.0001027,2]
[348113271,1736326245494,-628.47551181,0.0001027,2]
[348113272,1736326245506,-500.0,0.0001027,2]
[348113273,1736326245516,-500.0,0.0001027,2]
[348113274,1736326245524,-500.0,0.0001027,2]
[348113275,1736326245533,-178.11,0.0001027,2]
[348113276,1736326245543,-500.0,0.0001027,2]
[348113277,1736326245552,-500.0,0.0001027,2]
[348113278,1736326245562,-500.0,0.0001027,2]
[348113279,1736326245571,-500.0,0.0001027,2]
[348113280,1736326245580,-200.96309827,0.0001027,2]
[348113281,1736326245589,-500.0,0.0001027,2]
[348113282,1736326245598,-500.0,0.0001027,2]
[348113283,1736326245607,-612.42,0.0001027,2]
[348113284,1736326245616,-448.11927723,0.0001027,2]
[348113285,1736326245628,-500.0,0.0001027,2]
[348113286,1736326245638,-826.82,0.0001027,2]
[348113287,1736326245647,-500.0,0.0001027,2]
[348113288,1736326245656,-500.0,0.0001027,2]
[348113289,1736326245665,-500.0,0.0001027,2]
[348113290,1736326245674,-1236.18,0.0001027,2]
[348113291,1736326245683,-500.0,0.0001027,2]
[348113292,1736326245694,-500.0,0.0001027,2]
[348113293,1736326245703,-543.85078217,0.0001027,2]
[348113294,1736326245712,-2528.74,0.0001027,2]
[348113295,1736326245721,-500.0,0.0001027,2]
[348113296,1736326245730,-701.35,0.0001027,2]
[348113297,1736326245741,-500.0,0.0001027,2]
[348113298,1736326245751,-717.57,0.0001027,2]
[348113299,1736326245760,-500.0,0.0001027,2]
[348113300,1736326245770,-500.0,0.0001027,2]
[348113301,1736326245780,-500.0,0.0001027,2]
[348113302,1736326245790,-1485.16,0.0001027,2]
[348113303,1736326245799,-500.0,0.0001027,2]
[348113304,1736326245809,-723.58,0.0001027,2]
[348113305,1736326245819,-500.0,0.0001027,2]
[348113306,1736326245829,-1034.02,0.0001027,2]
[348113307,1736326245839,-500.0,0.0001027,2]
[348113308,1736326245848,-1286.39,0.0001027,2]
[348113309,1736326245857,-500.0,0.0001027,2]
[348113310,1736326245866,-500.0,0.0001027,2]
[348113311,1736326245876,-360.53467264,0.0001027,2]
[348113312,1736326245885,-500.0,0.0001027,2]
[348113313,1736326245894,-302.86800702,0.0001027,2]
[348113314,1736326245904,-527.54,0.0001027,2]
[348113315,1736326245913,-500.0,0.0001027,2]
[348113316,1736326245923,-500.0,0.0001027,2]
[348113317,1736326245932,-500.0,0.0001027,2]
[348113318,1736326245941,-855.03,0.0001027,2]
[348113319,1736326245952,-500.0,0.0001027,2]
[348113320,1736326245964,-599.89,0.0001027,2]
[348113321,1736326245975,-500.0,0.0001027,2]
[348113322,1736326245984,-1108.34,0.0001027,2]
[348113323,1736326245993,-500.0,0.0001027,2]
[348113324,1736326246003,-500.0,0.0001027,2]
[348113325,1736326246012,-500.0,0.0001027,2]
[348113326,1736326246021,-500.0,0.0001027,2]
[348113327,1736326246030,-500.0,0.0001027,2]
[348113328,1736326246040,-984.94,0.0001027,2]
[348113329,1736326246049,-500.0,0.0001027,2]
[348113330,1736326246059,-2828.87,0.0001027,2]
[348113331,1736326246068,-500.0,0.00010271,2]
[348113332,1736326246077,-500.0,0.00010271,2]
[348113333,1736326246087,-500.0,0.00010271,2]
[348113334,1736326246096,-500.0,0.00010271,2]
[348113335,1736326246106,-392.92040733,0.00010271,2]
[348113336,1736326246116,-500.0,0.00010271,2]
[348113337,1736326246127,-500.0,0.00010271,2]
[348113338,1736326246136,-500.0,0.00010271,2]
[348113339,1736326246145,-1165.88,0.00010271,2]
[348113340,1736326246154,-500.0,0.00010271,2]
[348113341,1736326246163,-500.0,0.00010271,2]
[348113342,1736326246172,-500.0,0.00010271,2]
[348113343,1736326246181,-500.0,0.00010271,2]
[348113344,1736326246190,-500.0,0.00010271,2]
[348113345,1736326246199,-500.0,0.00010271,2]
[348113346,1736326246208,-500.0,0.00010271,2]
[348113347,1736326246218,-500.0,0.00010271,2]
[348113348,1736326246227,-500.0,0.00010271,2]
[348113349,1736326246236,-500.0,0.00010271,2]
[348113350,1736326246245,-500.0,0.00010271,2]
[348113351,1736326246254,-500.0,0.00010271,2]
[348113352,1736326246263,-500.0,0.00010271,2]
[348113353,1736326246272,-500.0,0.00010271,2]
[348113354,1736326246281,-526.36742151,0.00010271,2]
[348113355,1736326246291,-500.0,0.00010271,2]
[348113356,1736326246300,-500.0,0.00010271,2]
[348113357,1736326246309,-500.0,0.00010271,2]
[348113358,1736326246318,-500.0,0.00010271,2]
[348113359,1736326246327,-500.0,0.00010271,2]
[348113360,1736326246335,-500.0,0.00010271,2]
[348113361,1736326246344,-500.0,0.00010271,2]
[348113362,1736326246354,-500.0,0.00010271,2]
[348113363,1736326246363,-570.33,0.00010271,2]
[348113364,1736326246372,-441.0,0.00010271,2]
[348113365,1736326246381,-500.0,0.00010271,2]
[348113366,1736326246390,-500.0,0.00010271,2]
[348113367,1736326246399,-500.0,0.00010271,2]
[348113368,1736326246408,-500.0,0.00010271,2]
[348113369,1736326246418,-500.0,0.00010271,2]
[348113370,1736326246428,-500.0,0.00010271,2]
[348113371,1736326246438,-500.0,0.00010271,2]
[348113372,1736326246447,-500.0,0.00010271,2]
[348113373,1736326246456,-500.0,0.00010271,2]
[348113374,1736326246465,-500.0,0.00010271,2]
[348113375,1736326246475,-500.0,0.00010271,2]
[348113376,1736326246484,-500.0,0.00010271,2]
[348113377,1736326246493,-500.0,0.00010271,2]
[348113378,1736326246502,-500.0,0.00010271,2]
[348113379,1736326246511,-500.0,0.00010271,2]
[348113380,1736326246520,-500.0,0.00010271,2]
[348113381,1736326246529,-500.0,0.00010271,2]
[348113382,1736326246539,-500.0,0.00010271,2]
[348113383,1736326246548,-451.55354677,0.00010271,2]
[348113384,1736326246557,-500.0,0.00010271,2]
[348113385,1736326246566,-500.0,0.00010271,2]
[348113386,1736326246576,-500.0,0.00010271,2]
[348113387,1736326246585,-500.0,0.00010271,2]
[348113388,1736326246594,-500.0,0.00010271,2]
[348113389,1736326246603,-500.0,0.00010271,2]
[348113390,1736326246612,-500.0,0.00010271,2]
[348113391,1736326246621,-500.0,0.00010271,2]
[348113392,1736326246631,-588.69,0.00010271,2]
[348113393,1736326246640,-500.0,0.00010271,2]
[348113394,1736326246649,-500.0,0.00010271,2]
[348113395,1736326246658,-500.0,0.00010271,2]
[348113396,1736326246667,-471.411506,0.00010271,2]
[348113397,1736326246677,-500.0,0.00010271,2]
[348113398,1736326246686,-500.0,0.00010271,2]
[348113399,1736326246698,-500.0,0.00010271,2]
[348113400,1736326246707,-500.0,0.00010271,2]
[348113401,1736326246716,-500.0,0.00010271,2]
[348113402,1736326246725,-500.0,0.00010271,2]
[348113403,1736326246734,-500.0,0.00010271,2]
[348113404,1736326246745,-500.0,0.00010271,2]
[348113405,1736326246754,-616.61849769,0.00010271,2]
[348113406,1736326246763,-500.0,0.00010271,2]
[348113407,1736326246774,-500.0,0.00010271,2]
[348113408,1736326246784,-500.0,0.00010271,2]
[348113409,1736326246793,-500.0,0.00010271,2]
[348113410,1736326246802,-655.86,0.00010271,2]
[348113411,1736326246811,-500.0,0.00010271,2]
[348113412,1736326246820,-634.49,0.00010271,2]
[348113413,1736326246830,-500.0,0.00010271,2]
[348113414,1736326246839,-605.16,0.00010271,2]
[348113415,1736326246849,-500.0,0.00010271,2]
[348113416,1736326246858,-500.0,0.00010271,2]
[348113417,1736326246867,-500.0,0.00010271,2]
[348113418,1736326246877,-500.0,0.00010271,2]
[348113419,1736326246886,-500.0,0.00010271,2]
[348113420,1736326246895,-500.0,0.00010271,2]
[348113421,1736326246904,-500.0,0.00010271,2]
[348113422,1736326246913,-500.0,0.00010271,2]
[348113423,1736326246923,-12434.6,0.00010271,2]
[348113424,1736326246932,-974.42,0.00010272,2]
[348113425,1736326246941,-500.0,0.00010272,2]
[348113426,1736326246950,-585.54,0.00010272,2]
[348113427,1736326246960,-500.0,0.00010272,2]
[348113428,1736326246968,-500.0,0.00010272,2]
[348113429,1736326246978,-500.0,0.00010272,2]
[348113430,1736326246987,-956.14,0.00010272,2]
[348113431,1736326246996,-500.0,0.00010272,2]
[348113432,1736326247005,-500.0,0.00010272,2]
[348113433,1736326247014,-550.67504836,0.00010272,2]
[348113434,1736326247023,-500.0,0.00010272,2]
[348113435,1736326247033,-500.0,0.00010272,2]
[348113436,1736326247043,-500.0,0.00010272,2]
[348113437,1736326247052,-500.0,0.00010272,2]
[348113438,1736326247061,-996.33,0.00010272,2]
[348113439,1736326247070,-500.0,0.00010272,2]
[348113440,1736326247080,-500.0,0.00010272,2]
[348113441,1736326247089,-500.0,0.00010272,2]
[348113442,1736326247098,-500.0,0.00010272,2]
[348113443,1736326247107,-500.0,0.00010272,2]
[348113444,1736326247116,-500.0,0.00010272,2]
[348113445,1736326247125,-3647.36,0.00010272,2]
[348113446,1736326247135,-3647.36,0.00010272,2]
[348113447,1736326247144,-500.0,0.00010272,2]
[348113448,1736326247152,-500.0,0.00010272,2]
[348113449,1736326247162,-500.0,0.00010272,2]
[348113450,1736326247171,-500.0,0.00010272,2]
[348113451,1736326247179,-500.0,0.00010272,2]
[348113452,1736326247189,-172.95,0.00010272,2]
[348113453,1736326247198,-500.0,0.00010272,2]
[348113454,1736326247207,-500.0,0.00010272,2]
[348113455,1736326247216,-500.0,0.00010272,2]
[348113456,1736326247225,-500.0,0.00010272,2]
[348113457,1736326247235,-500.0,0.00010272,2]
[348113458,1736326247244,-500.0,0.00010272,2]
[348113459,1736326247253,-500.0,0.00010272,2]
[348113460,1736326247262,-500.0,0.00010272,2]
[348113461,1736326247271,-500.0,0.00010272,2]
[348113462,1736326247280,-500.0,0.00010272,2]
[348113463,1736326247290,-500.0,0.00010272,2]
[348113464,1736326247299,-508.9,0.00010272,2]
[348113465,1736326247309,-500.0,0.00010272,2]
[348113466,1736326247318,-500.0,0.00010272,2]
[348113467,1736326247328,-500.0,0.00010272,2]
[348113468,1736326247337,-500.0,0.00010272,2]
[348113469,1736326247346,-500.0,0.00010272,2]
[348113470,1736326247355,-1657.8,0.00010272,2]
[348113471,1736326247365,-854.74,0.00010272,2]
[348113472,1736326247374,-500.0,0.00010272,2]
[348113473,1736326247383,-500.0,0.00010272,2]
[348113474,1736326247392,-500.0,0.00010272,2]
[348113475,1736326247402,-500.0,0.00010272,2]
[348113476,1736326247413,-500.0,0.00010272,2]
[348113477,1736326247423,-512.34,0.00010272,2]
[348113478,1736326247433,-500.0,0.00010272,2]
[348113479,1736326247442,-500.0,0.00010272,2]
[348113480,1736326247452,-2742.72,0.00010272,2]
[348113481,1736326247462,-500.0,0.00010272,2]
[348113482,1736326247472,-500.0,0.00010272,2]
[348113483,1736326247481,-500.0,0.00010272,2]
[348113484,1736326247491,-795.14,0.00010272,2]
[348113485,1736326247500,-500.0,0.00010272,2]
[348113486,1736326247509,-500.0,0.00010272,2]
[348113487,1736326247518,-592.38,0.00010272,2]
[348113488,1736326247528,-500.0,0.00010272,2]
[348113489,1736326247537,-2071.63,0.00010272,2]
[348113490,1736326247547,-500.0,0.00010272,2]
[348113491,1736326247556,-500.0,0.00010272,2]
[348113492,1736326247566,-556.68,0.00010272,2]
[348113493,1736326247575,-500.0,0.00010272,2]
[348113494,1736326247585,-897.02,0.00010272,2]
[348113495,1736326247595,-500.0,0.00010272,2]
[348113496,1736326247604,-2523.41,0.00010272,2]
[348113497,1736326247613,-500.0,0.00010272,2]
[348113498,1736326247623,-2208.12,0.00010272,2]
[348113499,1736326247632,-500.0,0.00010272,2]
[348113500,1736326247642,-523.26,0.00010272,2]
[348113501,1736326247652,-500.0,0.00010272,2]
[348113502,1736326247661,-500.0,0.00010272,2]
[348113503,1736326247671,-500.0,0.00010272,2]
[348113504,1736326247680,-500.0,0.00010272,2]
[348113505,1736326247692,-500.0,0.00010272,2]
[348113506,1736326247705,-580.68,0.00010272,2]
[348113507,1736326247714,-500.0,0.00010272,2]
[348113508,1736326247724,-500.0,0.00010272,2]
[348113509,1736326247735,-500.0,0.00010272,2]
[348113510,1736326247744,-500.0,0.00010272,2]
[348113511,1736326247753,-1000.0,0.00010272,2]
[348113512,1736326247764,-1000.0,0.00010272,2]
[348113513,1736326247774,-500.0,0.00010272,2]
[348113514,1736326247783,-1653.5,0.00010272,2]
[348113515,1736326247794,-500.0,0.00010272,2]
[348113516,1736326247803,-500.0,0.00010272,2]
[348113517,1736326247813,-500.0,0.00010272,2]
[348113518,1736326247825,-500.0,0.00010272,2]
[348113519,1736326247835,-500.0,0.00010272,2]
[348113520,1736326247844,-1165.9,0.00010272,2]
[348113521,1736326247854,-500.0,0.00010272,2]
[348113522,1736326247865,-500.0,0.00010272,2]
[348113523,1736326247875,-500.0,0.00010272,2]
[348113524,1736326247884,-500.0,0.00010272,2]
[348113525,1736326247893,-500.0,0.00010272,2]
[348113526,1736326247903,-500.0,0.00010272,2]
[348113527,1736326247913,-500.0,0.00010272,2]
[348113528,1736326247922,-500.0,0.00010272,2]
[348113529,1736326247931,-500.0,0.00010272,2]
[348113530,1736326247941,-2353.3,0.00010272,2]
[348113531,1736326247950,-500.0,0.00010272,2]
[348113532,1736326247961,-500.0,0.00010272,2]
[348113533,1736326247972,-500.0,0.00010272,2]
[348113534,1736326247981,-714.02,0.00010272,2]
[348113535,1736326247991,-2288.4,0.00010272,2]
[348113536,1736326248000,-500.0,0.00010272,2]
[348113537,1736326248010,-1387.75,0.00010272,2]
[348113538,1736326248020,-500.0,0.00010272,2]
[348113539,1736326248030,-500.0,0.00010272,2]
[348113540,1736326248040,-1298.84,0.00010273,2]
[348113541,1736326248050,-699.71,0.00010273,2]
[348113542,1736326248060,-517.96,0.00010273,2]
[348113543,1736326248069,-500.0,0.00010273,2]
[348113544,1736326248079,-500.0,0.00010273,2]
[348113545,1736326248089,-1795.09,0.00010273,2]
[348113546,1736326248100,-917.41,0.00010273,2]
[348113547,1736326248110,-500.0,0.00010273,2]
[348113548,1736326248120,-209.57202962,0.000103,2]
[348113549,1736326248129,-61575.81507239,0.00010343,2]
[348113550,1736326248149,-3229.9500004,0.00010343,2]
[348113551,1736326248663,-819.52,9.998e-05,2]
[348113552,1736326248673,-500.0,9.999e-05,2]
[348113553,1736326248682,-819.52,0.00010272,2]
[348113554,1736326248692,-500.0,0.00010273,2]
[348113555,1736326248706,-16585.58450324,0.00010343,2]
[348113556,1736326248721,-4741.56374798,0.00010343,2]
[348113557,1736326248732,-963.52268,0.00010343,2]
[348113558,1736326248744,-6295.25273071,0.00010343,2]
[348113559,1736326248756,-10579.1443274,0.00010343,2]
[348113560,1736326248767,-577.104,0.00010343,2]
[348113561,1736326249218,-6135.34631403,0.00010343,2]
[348113562,1736326249229,-479.66,0.00010343,2]
[348113599,1736327431920,-826.05,8.219e-05,2]
[348113600,1736327431930,-123.89196682,8.991e-05,2]
[348113601,1736327431942,-126.10803318,8.991e-05,2]
[348113602,1736327431951,-423.95,9.01e-05,2]
[348113603,1736327432028,-576.05,9.01e-05,2]
[348113604,1736327432039,-300.0,9.063e-05,2]
[348113605,1736327432048,-3484.31722668,9.064e-05,2]
[348113606,1736327432058,-22496.95,9.064e-05,2]
[348113607,1736327432067,-594.43,9.154e-05,2]
[348113608,1736327432076,-1500.0,9.173e-05,2]
[348113609,1736327432087,-179.84,9.212e-05,2]
[348113610,1736327432099,-200.0,9.245e-05,2]
[348113611,1736327432108,-250.0,9.297e-05,2]
[348113612,1736327432118,-850.52,9.32e-05,2]
[348113613,1736327432127,-150.0,9.444e-05,2]
[348113614,1736327432139,-150.0,9.444e-05,2]
[348113615,1736327432148,-500.0,9.787e-05,2]
[348113616,1736327432158,-1636.2946,9.795e-05,2]
[348113617,1736327432169,-705.0,9.865e-05,2]
[348113618,1736327432179,-1000.0,9.899e-05,2]
[348113619,1736327432188,-154.714,9.97e-05,2]
[348113620,1736327432198,-300.57,9.97e-05,2]
[348113621,1736327432207,-420.0,9.97e-05,2]
[348113622,1736327432217,-201.31231359,9.991e-05,2]
[348113623,1736327432227,-150.0,9.995e-05,2]
[348113624,1736327432236,-500.0,9.996e-05,2]
[348113625,1736327432247,-500.0,9.996e-05,2]
[348113626,1736327432257,-500.0,9.996e-05,2]
[348113627,1736327432266,-500.0,9.996e-05,2]
[348113628,1736327432276,-500.0,9.996e-05,2]
[348113629,1736327432285,-500.0,9.996e-05,2]
[348113630,1736327432296,-500.0,9.996e-05,2]
[348113631,1736327432305,-500.0,9.996e-05,2]
[348113633,1736327432314,-500.0,9.996e-05,2]
[348113634,1736327432323,-500.0,9.996e-05,2]
[348113636,1736327432333,-500.0,9.996e-05,2]
[348113638,1736327432342,-500.0,9.996e-05,2]
[348113639,1736327432351,-300.70864044,9.996e-05,2]
[348113642,1736327432363,-500.0,9.996e-05,2]
[348113644,1736327432373,-500.0,9.996e-05,2]
[348113645,1736327432382,-500.0,9.996e-05,2]
[348113647,1736327432392,-233.03118668,9.996e-05,2]
[348113649,1736327432401,-500.0,9.996e-05,2]
[348113651,1736327432411,-500.0,9.996e-05,2]
[348113653,1736327432421,-500.0,9.996e-05,2]
[348113655,1736327432430,-500.0,9.996e-05,2]
[348113657,1736327432440,-500.0,9.996e-05,2]
[348113658,1736327432450,-500.0,9.996e-05,2]
[348113660,1736327432460,-500.0,9.996e-05,2]
[348113662,1736327432469,-500.0,9.996e-05,2]
[348113664,1736327432479,-500.0,9.996e-05,2]
[348113666,1736327432488,-500.0,9.996e-05,2]
[348113668,1736327432498,-500.0,9.996e-05,2]
[348113670,1736327432507,-500.0,9.996e-05,2]
[348113672,1736327432517,-500.0,9.996e-05,2]
[348113673,1736327432527,-500.0,9.996e-05,2]
[348113676,1736327432537,-500.0,9.996e-05,2]
[348113679,1736327432546,-500.0,9.996e-05,2]
[348113682,1736327432555,-500.0,9.996e-05,2]
[348113685,1736327432564,-500.0,9.996e-05,2]
[348113687,1736327432574,-500.0,9.996e-05,2]
[348113689,1736327432583,-500.0,9.996e-05,2]
[348113693,1736327432592,-500.0,9.996e-05,2]
[348113696,1736327432602,-500.0,9.996e-05,2]
[348113699,1736327432611,-500.0,9.996e-05,2]
[348113700,1736327432620,-500.0,9.996e-05,2]
[348113704,1736327432630,-500.0,9.996e-05,2]
[348113706,1736327432640,-500.0,9.996e-05,2]
[348113708,1736327432650,-500.0,9.996e-05,2]
[348113710,1736327432659,-606.85,9.996e-05,2]
[348113712,1736327432669,-500.0,9.996e-05,2]
[348113714,1736327432679,-500.0,9.996e-05,2]
[348113716,1736327432689,-500.0,9.996e-05,2]
[348113718,1736327432699,-500.0,9.996e-05,2]
[348113720,1736327432708,-500.0,9.996e-05,2]
[348113722,1736327432718,-500.0,9.996e-05,2]
[348113723,1736327432727,-500.0,9.996e-05,2]
[348113724,1736327432736,-500.0,9.996e-05,2]
[348113725,1736327432745,-500.0,9.996e-05,2]
[348113726,1736327432755,-500.0,9.996e-05,2]
[348113727,1736327432766,-500.0,9.996e-05,2]
[348113728,1736327432776,-500.0,9.996e-05,2]
[348113729,1736327432786,-500.0,9.996e-05,2]
[348113730,1736327432795,-500.0,9.996e-05,2]
[348113731,1736327432804,-500.0,9.996e-05,2]
[348113732,1736327432813,-500.0,9.996e-05,2]
[348113733,1736327432823,-500.0,9.996e-05,2]
[348113734,1736327432832,-500.0,9.996e-05,2]
[348113735,1736327432841,-500.0,9.996e-05,2]
[348113736,1736327432851,-500.0,9.996e-05,2]
[348113737,1736327432860,-500.0,9.996e-05,2]
[348113738,1736327432870,-500.0,9.996e-05,2]
[348113739,1736327432880,-500.0,9.996e-05,2]
[348113740,1736327432889,-500.0,9.996e-05,2]
[348113741,1736327432898,-500.0,9.996e-05,2]
[348113742,1736327432907,-500.0,9.996e-05,2]
[348113743,1736327432916,-500.0,9.996e-05,2]
[348113744,1736327432925,-674.78,9.996e-05,2]
[348113745,1736327432935,-500.0,9.996e-05,2]
[348113746,1736327432943,-647.85,9.996e-05,2]
[348113747,1736327432952,-500.0,9.996e-05,2]
[348113748,1736327432961,-618.85,9.996e-05,2]
[348113749,1736327432970,-500.0,9.996e-05,2]
[348113750,1736327432979,-500.0,9.996e-05,2]
[348113751,1736327432988,-500.0,9.996e-05,2]
[348113752,1736327432997,-500.0,9.996e-05,2]
[348113753,1736327433006,-235.23,9.996e-05,2]
[348113754,1736327433015,-2528.09,9.996e-05,2]
[348113755,1736327433024,-500.0,9.997e-05,2]
[348113756,1736327433033,-500.0,9.997e-05,2]
[348113757,1736327433043,-500.0,9.998e-05,2]
[348113758,1736327433052,-1004.01,9.998e-05,2]
[348113759,1736327433061,-1911.91,9.998e-05,2]
[348113760,1736327433070,-500.0,9.998e-05,2]
[348113761,1736327433080,-500.0,9.998e-05,2]
[348113762,1736327433091,-500.0,9.998e-05,2]
[348113763,1736327433101,-500.0,9.998e-05,2]
[348113764,1736327433111,-500.0,9.998e-05,2]
[348113765,1736327433120,-758.87,9.998e-05,2]
[348113766,1736327433131,-1017.65,9.998e-05,2]
[348113767,1736327433140,-956.66,9.998e-05,2]
[348113768,1736327433150,-944.67,9.998e-05,2]
[348113769,1736327433160,-2403.44,9.998e-05,2]
[348113770,1736327433172,-1512.91,9.998e-05,2]
[348113771,1736327433183,-500.0,9.998e-05,2]
[348113772,1736327433192,-500.0,9.998e-05,2]
[348113773,1736327433203,-500.0,9.998e-05,2]
[348113774,1736327433214,-1000.0,9.998e-05,2]
[348113775,1736327433224,-1768.99,9.999e-05,2]
[348113776,1736327433234,-1120.31,9.999e-05,2]
[348113777,1736327433245,-1500.0,0.0001,3]
[348113778,1736327433255,-184.03,0.0001,2]
[348113779,1736327433265,-1000.0,0.0001,2]
[348113780,1736327433275,-4375.1736662,0.0001,4]
[348113781,1736327433285,-10728.63127769,0.0001,2]
[348113782,1736327433296,-201.31231369,0.0001,2]
[348113783,1736327433306,-201.31231359,0.00010082,2]
[348113784,1736327433316,-1000.0,0.00010136,2]
[348113785,1736327433327,-361.92,0.00010137,2]
[348113786,1736327433336,-153.6018,0.00010169,2]
[348113787,1736327433347,-201.31231359,0.00010173,2]
[348113788,1736327433356,-201.31231359,0.00010264,2]
[348113789,1736327433366,-500.0,0.00010268,2]
[348113790,1736327433376,-500.0,0.00010268,2]
[348113791,1736327433386,-1107.8,0.00010268,2]
[348113792,1736327433396,-500.0,0.00010268,2]
[348113793,1736327433405,-1486.04,0.00010268,2]
[348113794,1736327433415,-724.98,0.00010268,2]
[348113795,1736327433424,-500.0,0.00010268,2]
[348113796,1736327433434,-500.0,0.00010268,2]
[348113797,1736327433444,-1297.77,0.00010268,2]
[348113798,1736327433453,-525.6,0.00010268,2]
[348113799,1736327433463,-500.0,0.00010268,2]
[348113800,1736327433473,-567.29,0.00010268,2]
[348113801,1736327433482,-526.5,0.00010268,2]
[348113802,1736327433492,-500.0,0.00010268,2]
[348113803,1736327433501,-500.0,0.00010268,2]
[348113804,1736327433511,-851.44,0.00010268,2]
[348113805,1736327433521,-507.10849995,0.00010268,2]
[348113806,1736327433531,-500.0,0.00010268,2]
[348113807,1736327433541,-1163.58,0.00010268,2]
[348113808,1736327433551,-500.0,0.00010268,2]
[348113809,1736327433561,-500.0,0.00010268,2]
[348113810,1736327433571,-500.0,0.00010268,2]
[348113811,1736327433580,-1343.9,0.00010268,2]
[348113812,1736327433590,-500.0,0.00010268,2]
[348113813,1736327433599,-500.0,0.00010268,2]
[348113814,1736327433609,-500.0,0.00010268,2]
[348113815,1736327433618,-500.0,0.00010269,2]
[348113816,1736327433628,-500.0,0.00010269,2]
[348113817,1736327433638,-500.0,0.00010269,2]
[348113818,1736327433648,-500.0,0.00010269,2]
[348113819,1736327433658,-399.91131291,0.00010269,2]
[348113820,1736327433667,-500.0,0.00010269,2]
[348113821,1736327433676,-500.0,0.00010269,2]
[348113822,1736327433686,-604.54793491,0.00010269,2]
[348113823,1736327433695,-500.0,0.00010269,2]
[348113824,1736327433705,-500.0,0.00010269,2]
[348113825,1736327433715,-500.0,0.00010269,2]
[348113826,1736327433725,-500.0,0.00010269,2]
[348113827,1736327433735,-500.0,0.00010269,2]
[348113828,1736327433745,-500.0,0.00010269,2]
[348113829,1736327433755,-500.0,0.00010269,2]
[348113830,1736327433764,-500.0,0.00010269,2]
[348113831,1736327433773,-500.0,0.00010269,2]
[348113832,1736327433782,-500.0,0.00010269,2]
[348113833,1736327433792,-500.0,0.00010269,2]
[348113834,1736327433801,-500.0,0.00010269,2]
[348113835,1736327433811,-500.0,0.00010269,2]
[348113836,1736327433821,-500.0,0.00010269,2]
[348113837,1736327433830,-500.0,0.00010269,2]
[348113838,1736327433839,-500.0,0.00010269,2]
[348113839,1736327433849,-500.0,0.00010269,2]
[348113840,1736327433858,-500.0,0.00010269,2]
[348113841,1736327433868,-333.42390481,0.00010269,2]
[348113842,1736327433877,-500.0,0.00010269,2]
[348113843,1736327433887,-500.0,0.00010269,2]
[348113844,1736327433896,-500.0,0.00010269,2]
[348113845,1736327433906,-500.0,0.00010269,2]